bitfinex/quotes_ETHUSD_20250808
["timestamp","ask_amount","ask_price","bid_price","bid_amount"]
[1754619679189,0.1288,3888.7,3888.6,0.459]
[1754619679825,0.1288,3888.7,3888.6,14.0950781]
[1754619680410,0.1288,3888.7,3888.6,11.5234585]
[1754619680886,0.1288,3888.7,3888.5,3.918]
[1754619682318,0.1288,3888.7,3888.4,3.917]
[1754619682514,2.57150779,3888.8,3888.5,3.0]
[1754619682683,2.57150779,3888.8,3888.5,7.268]
[1754619682884,0.1288,3888.6,3888.5,7.268]
[1754619683490,2.089,3888.6,3888.5,7.268]
[1754619683688,0.1288,3888.6,3888.5,7.268]
[1754619684701,2.7004196,3888.6,3888.5,7.268]
[1754619685028,0.1288,3888.6,3888.5,7.268]
[1754619685401,2.7004196,3888.6,3888.5,7.268]
[1754619685829,0.1288,3888.6,3888.5,7.268]
[1754619688028,0.1288,3888.6,3888.5,25.28014424]
[1754619688210,0.1288,3888.6,3888.5,22.7084585]
[1754619688611,0.1288,3888.6,3888.5,18.4404585]
[1754619688832,0.1288,3888.6,3888.5,9.2996]
[1754619690036,0.1288,3888.6,3888.5,11.87128574]
[1754619690337,0.002,3888.9,3888.8,5.57148734]
[1754619690547,0.1308,3888.9,3888.8,22.89734584]
[1754619690906,0.1308,3888.9,3888.8,25.27994584]
[1754619691509,0.1308,3888.9,3888.8,6.917]
[1754619692014,0.1308,3888.9,3888.8,7.376]
[1754619693154,0.1308,3888.9,3888.8,9.2996]
[1754619694341,0.1308,3888.9,3888.8,9.48848734]
[1754619694564,0.1308,3888.9,3888.8,11.87108734]
[1754619695063,0.1308,3888.9,3888.8,9.2996]
[1754619695623,0.1308,3888.9,3888.8,11.87108734]
[1754619697265,0.1308,3888.9,3888.8,9.2996]
[1754619697465,0.1308,3888.9,3888.8,13.5676]
[1754619697759,0.1308,3888.9,3888.8,16.13908734]
[1754619698360,0.1308,3888.9,3888.8,25.27994584]
[1754619698526,0.1308,3888.9,3888.8,22.7084585]
[1754619698722,0.1308,3888.9,3888.8,11.185]
[1754619698929,0.1308,3888.9,3888.8,11.644]
[1754619699124,0.1308,3888.9,3888.8,13.5676]
[1754619700189,0.1308,3888.9,3888.8,11.185]
[1754619701975,0.1308,3888.9,3888.8,11.644]
[1754619703779,0.1308,3888.9,3888.8,13.4708]
[1754619704873,0.1308,3888.9,3888.8,9.2028]
[1754619705773,0.1308,3888.9,3888.8,11.77428734]
[1754619706271,0.1308,3888.9,3888.8,20.91514584]
[1754619708253,0.002,3888.9,3888.8,25.18314584]
[1754619709362,0.002,3888.9,3888.8,25.31194584]
[1754619711183,0.002,3888.9,3888.8,25.44582891]
[1754619715388,0.002,3889.1,3889.0,2.5713551]
[1754619715589,0.002,3889.3,3889.0,14.32906865]
[1754619715776,0.002,3889.4,3889.3,5.57115676]
[1754619716003,0.002,3889.4,3889.3,9.48515676]
[1754619716206,0.002,3889.4,3889.3,11.76245676]
[1754619716778,0.002,3889.4,3889.3,9.93565676]
[1754619716980,0.002,3889.4,3889.3,20.90331526]
[1754619721248,0.002,3889.5,3889.4,2.57109065]
[1754619721537,0.002,3889.5,3889.4,8.00290155]
[1754619721738,0.002,3889.5,3889.4,12.24519065]
[1754619722601,0.002,3889.5,3889.4,13.75309065]
[1754619723804,1.9034,3889.5,3889.4,4.268]
[1754619723995,2.0322,3889.5,3889.4,8.181]
[1754619724629,2.0322,3889.5,3889.4,11.181]
[1754619726544,2.38432,3889.5,3888.9,3.913]
[1754619726746,2.57128898,3889.1,3889.0,3.0]
[1754619726905,4.62138898,3889.1,3889.0,3.0]
[1754619727105,2.57136405,3889.0,3888.8,6.913]
[1754619727306,4.62146405,3889.0,3888.8,6.913]
[1754619729052,2.1789,3888.9,3888.8,6.913]
[1754619729558,4.75032122,3888.9,3888.8,3.0]
[1754619729730,2.1789,3888.9,3888.8,3.0]
[1754619729927,4.75037804,3888.9,3888.7,3.0]
[1754619730113,4.62158734,3888.8,3888.7,3.0]
[1754619730315,5.35376211,3888.8,3888.7,3.0]
[1754619730517,2.57155347,3888.7,3888.1,0.001]
[1754619730745,2.57172061,3888.5,3888.2,3.913]
[1754619730946,1.9014,3888.4,3888.3,3.0]
[1754619731456,2.0302,3888.4,3888.3,3.0]
[1754619734553,0.1288,3888.4,3888.3,3.0]
[1754619735341,2.1032,3888.4,3888.3,3.0]
[1754619735642,4.67495187,3888.4,3888.3,7.268]
[1754619736145,2.57188416,3888.2,3888.1,0.001]
[1754619736658,4.82378416,3888.2,3888.1,0.001]
[1754619736862,4.67508416,3888.2,3888.1,0.001]
[1754619737828,2.70068416,3888.2,3888.1,0.001]
[1754619738278,0.1288,3888.2,3888.1,0.001]
[1754619738564,2.70068416,3888.2,3888.1,0.001]
[1754619738934,0.1288,3888.2,3888.1,0.001]
[1754619739860,0.1288,3888.2,3888.1,2.3621]
[1754619740058,0.1288,3888.2,3888.1,0.001]
[1754619740059,2.70068416,3888.2,3888.1,0.001]
[1754619740268,4.67508416,3888.2,3888.1,0.001]
[1754619740817,5.41463821,3888.2,3888.1,0.001]
[1754619742246,2.1032,3888.2,3888.1,0.001]
[1754619742550,0.1288,3888.2,3888.1,0.001]
[1754619743274,2.70068416,3888.2,3888.1,0.001]
[1754619743562,4.67508416,3888.2,3888.1,0.001]
[1754619745110,4.77408416,3888.2,3888.1,0.001]
[1754619745308,5.90006828,3888.2,3888.1,0.001]
[1754619745809,6.45006828,3888.2,3888.1,0.001]
[1754619747277,6.35106828,3888.2,3888.1,0.001]
[1754619747517,5.80106828,3888.2,3888.1,0.001]
[1754619747696,3.82666828,3888.2,3888.1,0.001]
[1754619747898,2.70068416,3888.2,3888.1,0.001]
[1754619750074,4.67508416,3888.2,3888.1,0.001]
[1754619751303,8.58908416,3888.2,3888.1,0.001]
[1754619751712,6.61468416,3888.2,3888.1,0.001]
[1754619752219,0.1288,3888.2,3888.1,0.001]
[1754619752420,4.54551474,3889.4,3888.1,2.3621]
[1754619752610,0.1288,3888.2,3888.1,1.8995]
[1754619753217,0.1288,3888.2,3888.1,2.3621]
[1754619753382,0.1288,3888.2,3888.1,4.9340503]
[1754619753724,0.1288,3888.2,3888.1,2.3621]
[1754619754308,0.1288,3888.2,3888.1,4.9340503]
[1754619754793,0.1288,3888.2,3888.1,2.3621]
[1754619755931,0.1288,3888.2,3888.1,4.9340503]
[1754619756307,0.1288,3888.2,3888.1,2.3621]
[1754619756624,0.1288,3888.2,3888.1,6.6301]
[1754619757323,0.1288,3888.2,3888.1,9.2020503]
[1754619757824,0.1288,3888.2,3888.1,10.5441]
[1754619758192,0.1288,3888.2,3888.1,0.001]
[1754619758423,4.67508416,3888.2,3888.1,0.001]
[1754619759836,2.70068416,3888.2,3888.1,0.001]
[1754619760733,4.67508416,3888.2,3888.1,0.001]
[1754619760938,5.79117315,3888.2,3888.1,0.001]
[1754619762552,9.70517315,3888.2,3888.1,0.001]
[1754619763304,9.85387315,3888.2,3888.1,0.001]
[1754619764323,9.70517315,3888.2,3888.1,0.001]
[1754619766907,7.72977315,3888.2,3888.1,0.001]
[1754619768713,7.60097315,3888.2,3888.1,0.001]
[1754619772010,9.59747315,3888.2,3888.1,0.001]
[1754619772210,7.60097315,3888.2,3888.1,0.001]
[1754619772947,2.57188416,3888.2,3888.1,2.371]
[1754619773118,6.48488416,3888.2,3888.1,0.4627]
[1754619773335,6.48488416,3888.2,3888.1,0.001]
[1754619774252,2.5718805,3888.3,3888.1,2.371]
[1754619774546,2.57181801,3888.3,3888.2,2.37]
[1754619774754,2.57138688,3889.0,3888.2,2.37]
[1754619774953,2.57164982,3888.6,3888.3,0.4617]
[1754619775165,6.48464982,3888.6,3888.3,0.4617]
[1754619775312,2.57157613,3888.7,3888.4,1.9083]
[1754619775516,6.48466034,3888.6,3888.5,0.4617]
[1754619775715,6.48466034,3888.6,3888.5,2.37]
[1754619776249,3.913,3888.6,3888.5,2.37]
[1754619776462,2.5715555,3888.7,3888.5,2.37]
[1754619776666,2.57142955,3888.9,3888.6,2.37]
[1754619776817,3.913,3888.9,3888.6,1.9083]
[1754619777017,3.913,3888.9,3888.7,0.4617]
[1754619777466,3.913,3888.9,3888.8,2.37]
[1754619777669,2.5713963,3889.0,3888.8,2.37]
[1754619777958,2.5713963,3889.0,3888.9,0.4617]
[1754619777959,6.4843963,3889.0,3888.9,0.4617]
[1754619778139,2.5713963,3889.0,3888.9,0.4617]
[1754619778372,6.4843963,3889.0,3888.9,2.37]
[1754619778913,0.1288,3889.0,3888.9,2.37]
[1754619779213,4.0418,3889.0,3888.9,2.37]
[1754619779418,0.1288,3889.0,3888.9,2.607]
[1754619779631,0.1288,3889.0,3888.9,5.17842122]
[1754619780643,0.1288,3889.0,3888.9,8.17842122]
[1754619780821,0.002,3889.4,3889.2,2.57119702]
[1754619781018,0.002,3889.4,3889.3,0.2571197]
[1754619781433,0.1308,3889.4,3889.3,2.6271197]
[1754619781630,0.1308,3889.4,3889.3,2.1654197]
[1754619781953,0.1308,3889.4,3889.1,2.37]
[1754619782176,0.002,3889.4,3889.1,0.4617]
[1754619782332,0.1288,3889.2,3889.1,0.4617]
[1754619782524,2.70002287,3889.2,3889.1,0.4617]
[1754619783162,2.70002928,3889.2,3888.9,3.0]
[1754619783368,0.1288,3889.0,3888.9,3.0]
[1754619783530,2.7001551,3889.0,3888.9,3.0]
[1754619783731,0.1288,3889.0,3888.9,3.0]
[1754619784660,0.1288,3889.0,3888.9,5.37]
[1754619785050,2.7001551,3889.0,3888.9,3.0]
[1754619785561,2.57144391,3888.9,3888.6,2.37]
[1754619785764,0.1288,3888.7,3888.6,2.37]
[1754619788472,0.1288,3888.7,3888.6,4.9416196]
[1754619788662,0.002,3889.4,3888.8,2.571429]
[1754619788865,0.002,3889.4,3888.9,6.48340645]
[1754619789164,0.1288,3889.0,3888.9,6.48340645]
[1754619789359,0.1288,3889.0,3888.9,6.282]
[1754619790372,0.1288,3889.0,3888.9,0.4617]
[1754619790677,0.1288,3889.0,3888.9,2.37]
[1754619793595,0.1288,3889.0,3888.8,3.912]
[1754619793771,0.1288,3889.0,3888.9,2.3067]
[1754619794721,0.1288,3889.0,3888.9,4.87812122]
[1754619794908,0.1288,3889.0,3888.9,2.3067]
[1754619795206,0.1288,3889.0,3888.9,6.5767]
[1754619796097,0.1288,3889.0,3888.9,9.14812122]
[1754619797867,0.1288,3889.0,3888.9,6.5767]
[1754619798494,0.1288,3889.0,3888.9,9.5767]
[1754619798700,0.1288,3889.0,3888.9,12.14812122]
[1754619800009,0.1288,3889.0,3888.9,12.14912122]
[1754619800189,0.1288,3889.0,3888.9,9.5777]
[1754619800578,0.1288,3889.0,3888.9,12.14912122]
[1754619801632,0.1288,3889.0,3888.9,9.5777]
[1754619801915,0.1288,3889.0,3888.9,13.4887]
[1754619805562,0.1288,3889.0,3888.9,16.06012122]
[1754619805721,0.1288,3889.0,3888.9,13.4887]
[1754619806043,0.1288,3889.0,3888.9,16.06012122]
[1754619806221,0.1288,3889.0,3888.9,13.4887]
[1754619807441,0.1288,3889.0,3888.9,16.06012122]
[1754619807643,0.1288,3889.0,3888.9,13.4887]
[1754619807816,0.1288,3889.0,3888.9,16.06012122]
[1754619808445,0.1288,3889.0,3888.9,13.4887]
[1754619809048,0.1288,3889.0,3888.9,11.181]
[1754619809371,0.58912749,3889.0,3888.9,0.001]
[1754619809669,5.21238259,3889.0,3888.9,0.001]
[1754619812950,5.06368259,3889.0,3888.9,0.001]
[1754619815873,5.21238259,3889.0,3888.9,0.001]
[1754619816681,5.06368259,3889.0,3888.9,0.001]
[1754619817387,3.16048259,3889.0,3888.9,0.001]
[1754619817892,2.7001551,3889.0,3888.9,0.001]
[1754619818062,0.1288,3889.0,3888.9,2.3077]
[1754619818487,2.7001551,3889.0,3888.9,2.3077]
[1754619818792,2.7001551,3889.0,3888.9,0.4399]
[1754619819490,0.1288,3889.0,3888.9,0.4399]
[1754619819705,0.1288,3889.0,3888.9,2.3077]
[1754619820093,2.7001551,3889.0,3888.9,2.3077]
[1754619821492,0.1288,3889.0,3888.9,2.3077]
[1754619822280,0.1288,3889.0,3888.9,2.53847]
[1754619822773,0.1288,3889.0,3888.9,6.80847]
[1754619824808,0.1288,3889.0,3888.9,9.37989122]
[1754619825170,0.1288,3889.0,3888.9,18.52074972]
[1754619825376,0.1288,3889.1,3889.0,2.5713551]
[1754619825724,0.002,3889.4,3889.3,5.57115676]
[1754619826004,0.002,3889.4,3889.3,14.71201526]
[1754619826419,0.002,3889.4,3889.3,17.13851526]
[1754619826714,0.002,3889.4,3889.3,21.04851526]
[1754619830609,0.002,3889.4,3889.3,25.31851526]
[1754619831692,0.002,3889.4,3889.3,25.44731526]
[1754619835511,0.002,3889.8,3889.3,25.44731526]
[1754619835712,1.1454,3890.7,3890.2,2.57056192]
[1754619836025,0.04,3890.9,3890.3,6.47847708]
[1754619836429,0.1288,3890.4,3890.3,6.47849584]
[1754619836598,0.1288,3890.4,3890.3,8.90499584]
[1754619836930,0.1288,3890.4,3890.3,21.04585434]
[1754619838494,0.1288,3890.4,3890.3,11.90499584]
[1754619839136,0.1288,3890.4,3890.3,9.3345]
[1754619840029,1.9278,3890.4,3890.3,6.908]
[1754619840231,4.49822977,3890.4,3890.3,3.908]
[1754619840744,1.9278,3890.4,3890.3,3.908]
[1754619840910,1.9278,3890.4,3889.6,2.57093815]
[1754619840911,2.57050457,3890.3,3889.6,2.57093815]
[1754619841107,0.1288,3890.0,3889.7,3.0]
[1754619841311,4.36956699,3890.2,3889.9,3.0]
[1754619841511,2.57056699,3890.2,3890.0,3.907]
[1754619841723,4.498428,3890.1,3890.0,3.907]
[1754619842546,4.498428,3890.1,3889.5,3.0]
[1754619842844,2.57051703,3890.3,3889.7,3.0]
[1754619843044,2.57056482,3890.2,3889.7,3.0]
[1754619843345,4.36956482,3890.2,3889.9,3.0]
[1754619843544,4.36956482,3890.2,3890.0,3.907]
[1754619844046,0.1288,3890.1,3890.0,3.907]
[1754619845849,0.1288,3890.1,3890.0,6.3335]
[1754619846148,0.1288,3890.1,3890.0,8.90419408]
[1754619848061,0.1308,3890.4,3890.3,5.8622]
[1754619848265,0.1308,3890.4,3890.3,3.907]
[1754619848643,0.1308,3890.4,3890.1,3.04191523]
[1754619848845,0.002,3890.4,3890.3,3.907]
[1754619849240,0.1308,3890.4,3890.3,3.907]
[1754619849460,0.1308,3890.4,3890.3,5.8622]
[1754619849958,0.1308,3890.4,3890.3,8.90399584]
[1754619850638,0.1308,3890.4,3890.3,6.3335]
[1754619851268,0.1308,3890.4,3890.3,10.6035]
[1754619856853,0.1308,3890.4,3890.3,10.1322]
[1754619859488,0.1308,3890.4,3890.3,10.6014]
[1754619861785,0.1308,3890.4,3890.3,13.17189584]
[1754619862083,0.1308,3890.4,3890.3,10.6014]
[1754619863183,0.1308,3890.4,3890.3,6.3314]
[1754619863722,0.1308,3890.4,3890.3,8.90189584]
[1754619863923,0.1308,3890.4,3890.3,6.3314]
[1754619865519,0.1308,3890.4,3890.3,6.3324]
[1754619868314,0.1308,3890.4,3890.3,10.6024]
[1754619870365,0.1308,3890.4,3890.3,6.6954]
[1754619870662,0.1308,3890.4,3890.3,10.6014]
[1754619872164,0.1308,3890.4,3890.3,3.907]
[1754619872481,0.1308,3890.4,3890.3,0.001]
[1754619872661,4.77762977,3890.4,3890.3,0.001]
[1754619873736,4.50022977,3890.4,3890.3,0.001]
[1754619875130,2.70122977,3890.4,3890.3,0.001]
[1754619875336,0.1308,3890.4,3890.3,0.001]
[1754619877473,0.1308,3890.4,3890.3,1.9958]
[1754619877669,0.1308,3890.4,3890.3,6.37]
[1754619877910,0.1308,3890.4,3890.3,10.64]
[1754619878300,0.1308,3890.4,3890.3,8.176]
[1754619879112,0.1308,3890.4,3890.3,10.64]
[1754619883274,0.1308,3890.4,3890.3,6.735]
[1754619883479,0.1308,3890.4,3890.3,8.176]
[1754619884190,4.50022977,3890.4,3890.3,8.176]
[1754619884404,5.23562797,3890.4,3890.3,4.271]
[1754619884720,0.8661982,3890.4,3890.3,4.271]
[1754619885234,3.43662797,3890.4,3890.3,4.271]
[1754619885512,5.23562797,3890.4,3890.3,4.271]
[1754619885687,4.50022977,3890.4,3890.3,4.271]
[1754619885897,2.70122977,3890.4,3890.3,4.271]
[1754619886212,0.1308,3890.4,3890.3,4.271]
[1754619886823,4.77762977,3890.4,3890.3,0.001]
[1754619887112,5.23562795,3890.4,3890.3,0.001]
[1754619887413,0.1308,3890.4,3890.3,1.9068]
[1754619887600,0.1308,3890.4,3890.3,2.3743]
[1754619888202,0.1308,3890.4,3890.3,6.2793]
[1754619889229,2.70122977,3890.4,3890.3,6.2793]
[1754619889433,2.70122977,3890.4,3890.3,3.906]
[1754619890200,2.70122977,3890.4,3890.3,0.001]
[1754619890840,5.41838317,3890.4,3890.3,0.001]
[1754619891029,5.69578317,3890.4,3890.3,0.001]
[1754619891231,9.59978317,3890.4,3890.3,0.001]
[1754619893442,10.14978317,3890.4,3890.3,0.001]
[1754619893627,2.57069408,3890.0,3889.9,0.001]
[1754619893826,6.60349408,3890.0,3889.9,0.001]
[1754619894228,8.67989408,3890.0,3889.9,0.001]
[1754619896053,8.40249408,3890.0,3889.9,0.001]
[1754619896246,6.60349408,3890.0,3889.9,0.001]
[1754619896451,9.44714587,3890.0,3889.9,0.001]
[1754619899280,7.64814587,3890.0,3889.9,0.001]
[1754619899482,0.1288,3890.0,3889.9,2.3743]
[1754619901285,2.69949408,3890.0,3889.9,0.001]
[1754619901484,0.1288,3890.0,3889.9,2.3743]
[1754619904556,0.1288,3890.0,3889.9,6.6443]
[1754619905371,0.1288,3890.0,3889.9,9.21506017]
[1754619905691,0.1288,3890.0,3889.9,6.6443]
[1754619905889,0.1288,3890.0,3889.9,9.21506017]
[1754619906096,0.1288,3890.0,3889.9,18.35591867]
[1754619906259,0.002,3890.4,3890.3,2.57049584]
[1754619906464,0.002,3890.4,3890.3,15.61535434]
[1754619906665,0.1308,3890.4,3890.3,15.61535434]
[1754619906875,0.1308,3890.4,3890.3,17.98865434]
[1754619907194,0.1308,3890.4,3890.3,15.4181585]
[1754619907363,0.1308,3890.4,3890.3,6.2773]
[1754619907564,0.1308,3890.4,3890.3,8.84779584]
[1754619908266,0.1308,3890.4,3890.3,6.2773]
[1754619908766,0.1308,3890.4,3890.3,8.84779584]
[1754619909678,0.1308,3890.4,3890.3,8.84879584]
[1754619910198,0.1308,3890.4,3890.3,20.98965434]
[1754619910585,0.002,3890.4,3890.3,20.98965434]
[1754619914616,0.002,3890.4,3890.3,25.25965434]
[1754619917690,0.002,3890.4,3890.3,20.98965434]
[1754619920718,0.002,3890.7,3890.4,6.12042977]
[1754619920905,0.04,3890.9,3890.8,5.57016551]
[1754619921109,0.04,3890.9,3890.8,18.74182401]
[1754619921288,0.04,3890.9,3890.8,20.57432401]
[1754619921499,0.04,3890.9,3890.8,21.02242401]
[1754619922597,0.04,3890.9,3890.8,5.57016551]
[1754619922797,0.04,3890.9,3890.8,9.47216551]
[1754619924293,0.04,3890.9,3890.8,6.902]
[1754619924499,0.1688,3890.9,3890.8,6.902]
[1754619924829,0.1688,3890.9,3890.8,20.89362401]
[1754619925625,0.1688,3890.9,3890.8,20.44552401]
[1754619925926,0.1688,3890.9,3890.8,3.0]
[1754619926229,0.1688,3890.9,3890.8,6.902]
[1754619927135,2.2452,3890.9,3890.3,0.001]
[1754619927433,0.1288,3890.6,3890.4,3.902]
[1754619927634,0.1288,3890.4,3890.3,0.001]
[1754619927800,2.69922977,3890.4,3890.3,0.001]
[1754619928004,4.77562977,3890.4,3890.3,0.001]
[1754619928952,5.51022272,3890.4,3890.3,0.001]
[1754619931537,5.51222272,3890.4,3890.3,0.001]
[1754619932747,5.23482272,3890.4,3890.3,0.001]
[1754619933450,3.43582272,3890.4,3890.3,0.001]
[1754619933636,0.1308,3890.4,3890.3,13.0438585]
[1754619933839,0.1308,3890.4,3890.3,15.3244585]
[1754619934240,0.1308,3890.4,3890.3,19.5944585]
[1754619934855,0.1308,3890.4,3890.3,17.7619585]
[1754619935054,0.1308,3890.4,3890.3,17.3138585]
[1754619935460,0.1308,3890.4,3890.3,10.4536]
[1754619937827,0.1308,3890.4,3890.3,8.173]
[1754619938461,0.1308,3890.4,3890.3,10.0055]
[1754619938626,0.1308,3890.4,3890.3,10.4536]
[1754619938826,0.1308,3890.4,3890.3,13.02409584]
[1754619939049,0.1308,3890.4,3890.3,22.16495434]
[1754619939274,0.002,3890.4,3890.3,25.16495434]
[1754619939462,0.1308,3890.4,3890.3,25.16495434]
[1754619940466,0.002,3890.4,3890.3,24.71685434]
[1754619940662,0.002,3890.4,3890.3,24.84565434]
[1754619941186,0.002,3890.4,3890.3,25.29375434]
[1754619941797,0.002,3890.4,3890.3,12.12209584]
[1754619941999,0.1308,3890.4,3890.3,13.74349584]
[1754619942788,0.1308,3890.4,3890.3,9.84149584]
[1754619943165,0.1308,3890.4,3890.3,11.173]
[1754619944202,0.1308,3890.4,3890.3,7.271]
[1754619944507,1.9298,3890.4,3890.3,11.173]
[1754619944807,1.9298,3890.4,3890.3,8.173]
[1754619945378,0.1308,3890.4,3890.3,8.173]
[1754619945896,0.1308,3890.4,3890.3,10.5267]
[1754619946072,0.1308,3890.4,3890.3,6.2567]
[1754619946599,0.1308,3890.4,3890.3,8.82719584]
[1754619947988,0.1308,3890.4,3890.3,6.2567]
[1754619948188,0.1308,3890.4,3890.3,3.903]
[1754619948907,0.1308,3890.4,3890.3,0.001]
[1754619949104,0.1308,3890.4,3890.3,3.903]
[1754619950201,0.1308,3890.4,3890.3,0.001]
[1754619950403,0.1308,3890.4,3890.3,5.7984]
[1754619950606,0.1308,3890.4,3890.3,8.82719584]
[1754619950902,0.1308,3890.4,3890.3,6.2567]
[1754619951102,0.1308,3890.4,3890.3,8.82719584]
[1754619952121,0.1308,3890.4,3890.3,13.09719584]
[1754619957430,0.1308,3890.4,3890.3,16.09719584]
[1754619957631,0.002,3890.4,3890.3,16.09719584]
[1754619957798,0.002,3890.4,3890.3,16.22599584]
[1754619966752,0.002,3890.7,3890.5,5.5703637]
[1754619966942,0.002,3890.7,3890.6,6.47129764]
[1754619967256,0.002,3890.7,3890.6,22.66836308]
[1754619969460,0.002,3890.7,3890.6,26.93636308]
[1754619969760,0.002,3890.7,3890.6,27.06516308]
[1754619972639,0.002,3890.7,3890.6,25.3481929]
[1754619972828,0.002,3890.8,3890.7,6.12023157]
[1754619973024,0.002,3890.8,3890.7,8.47393157]
[1754619974355,0.002,3890.8,3890.7,12.74193157]
[1754619974549,1e-08,3890.8,3890.7,12.74193157]
[1754619974753,1e-08,3890.9,3890.8,6.12016551]
[1754619975063,1e-08,3890.9,3890.8,12.47256551]
[1754619975239,1e-08,3890.9,3890.8,12.60136551]
[1754619980572,1e-08,3890.9,3890.8,5.69896551]
[1754619980872,1e-08,3890.9,3890.8,9.59896551]
[1754619981977,1e-08,3890.9,3890.8,11.59076551]
[1754619982376,1e-08,3890.9,3890.8,9.59896551]
[1754619983988,1e-08,3890.9,3890.8,9.47016551]
[1754619984155,1.79900001,3890.9,3890.8,9.47016551]
[1754619984986,1e-08,3890.9,3890.8,9.47016551]
[1754619985476,1e-08,3890.9,3890.8,13.73816551]
[1754619985781,1e-08,3890.9,3890.8,9.83816551]
[1754619985968,1.79900001,3890.9,3890.8,13.73716551]
[1754619986371,1e-08,3890.9,3890.8,9.83816551]
[1754619986571,2.07640001,3890.9,3890.8,13.73716551]
[1754619987076,1e-08,3890.9,3890.8,13.73716551]
[1754619987277,0.12880001,3890.9,3890.8,13.73716551]
[1754619987678,0.12880001,3890.9,3890.8,15.72896551]
[1754619988586,1e-08,3890.9,3890.8,16.18956551]
[1754619992012,1e-08,3890.9,3890.8,11.82996551]
[1754619992183,1e-08,3890.9,3890.8,13.73716551]
[1754619993020,1e-08,3890.9,3890.8,16.18956551]
[1754619993519,1e-08,3890.9,3890.8,13.73716551]
[1754619994019,1.79900001,3890.9,3890.8,13.73716551]
[1754619994200,1.79900001,3890.9,3890.8,7.268]
[1754619994390,2.38570001,3890.9,3890.8,11.167]
[1754619994590,2.20520001,3890.9,3890.8,11.167]
[1754619996124,2.20520001,3890.9,3890.8,11.168]
[1754619996329,1.92780001,3890.9,3890.8,11.168]
[1754619997125,0.12880001,3890.9,3890.8,22.86456077]
[1754619997429,0.12880001,3890.9,3890.8,25.31696077]
[1754619997825,0.12880001,3890.9,3890.8,22.86456077]
[1754619998830,0.12880001,3890.9,3890.8,25.31696077]
[1754619999426,1e-08,3890.9,3890.8,25.31696077]
[1754619999734,1e-08,3890.9,3890.8,22.86456077]
[1754619999930,1e-08,3890.9,3890.8,18.59656077]
[1754620000733,1e-08,3890.9,3890.8,5.57116551]
[1754620001032,2.07640001,3890.9,3890.8,6.9]
[1754620001598,1.79900001,3890.9,3890.8,9.47016551]
[1754620001799,1e-08,3890.9,3890.8,9.47016551]
[1754620002646,1.79900001,3890.9,3890.8,9.47016551]
[1754620003000,1.79900001,3890.9,3890.8,3.001]
[1754620003199,2.26978001,3890.9,3890.8,3.001]
[1754620003421,2.26978001,3890.9,3890.8,6.9]
[1754620005489,1.99238001,3890.9,3890.8,6.9]
[1754620005783,1e-08,3890.9,3890.8,9.47016551]
[1754620006677,1e-08,3890.9,3890.8,6.9]
[1754620007546,1e-08,3890.9,3890.8,9.47016551]
[1754620007765,1e-08,3890.9,3890.8,18.59656077]
[1754620008068,1e-08,3890.9,3890.8,21.00946077]
[1754620009357,1e-08,3890.9,3890.8,17.11046077]
[1754620009682,1e-08,3890.9,3890.8,21.00946077]
[1754620010385,1e-08,3890.9,3890.8,17.11046077]
[1754620010672,0.12880001,3890.9,3890.8,9.47016551]
[1754620011379,0.12880001,3890.9,3890.8,11.43096551]
[1754620011806,0.12880001,3890.9,3890.8,9.47016551]
[1754620011993,0.12880001,3890.9,3890.8,11.43096551]
[1754620012505,0.12880001,3890.9,3890.8,9.47016551]
[1754620013597,1.92780001,3890.9,3890.8,6.9]
[1754620013798,2.12118001,3890.9,3890.8,3.001]
[1754620013998,2.39858001,3890.9,3890.8,6.9]
[1754620015439,4.96867947,3890.9,3890.8,0.001]
[1754620018517,2.12118001,3890.9,3890.8,0.001]
[1754620018675,0.32218001,3890.9,3890.8,0.001]
[1754620019018,1.92780001,3890.9,3890.8,0.001]
[1754620019216,1.92980001,3890.9,3890.8,0.001]
[1754620019807,4.77729947,3890.9,3890.8,0.001]
[1754620020022,2.70089947,3890.9,3890.8,0.001]
[1754620020507,0.13080001,3890.9,3890.8,0.001]
[1754620020713,1.92980001,3890.9,3890.8,0.001]
[1754620021079,4.95046982,3890.9,3890.8,0.001]
[1754620021604,5.22786982,3890.9,3890.8,0.001]
[1754620022009,4.95046982,3890.9,3890.8,0.001]
[1754620022912,2.38037036,3890.9,3890.8,0.001]
[1754620023290,0.13080001,3890.9,3890.8,0.001]
[1754620023622,0.13080001,3890.9,3890.8,1.9618]
[1754620024288,0.13080001,3890.9,3890.8,0.001]
[1754620024488,0.13080001,3890.9,3890.8,2.4139]
[1754620025214,4.49989947,3890.9,3890.8,0.001]
[1754620025394,5.51263148,3890.9,3890.8,0.001]
[1754620025795,2.94253202,3890.9,3890.8,0.001]
[1754620025996,5.23523148,3890.9,3890.8,0.001]
[1754620026317,2.66513202,3890.9,3890.8,0.001]
[1754620026810,0.86613202,3890.9,3890.8,0.001]
[1754620027608,0.13080001,3890.9,3890.8,0.001]
[1754620028316,1.92980001,3890.9,3890.8,0.001]
[1754620028894,4.49989947,3890.9,3890.8,0.001]
[1754620030608,1.92980001,3890.9,3890.8,0.001]
[1754620030809,4.49989947,3890.9,3890.8,0.001]
[1754620031010,5.2352206,3890.9,3890.8,0.001]
[1754620032015,0.86612114,3890.9,3890.8,0.001]
[1754620032219,3.4362206,3890.9,3890.8,0.001]
[1754620033322,0.86612114,3890.9,3890.8,0.001]
[1754620033731,0.13080001,3890.9,3890.8,0.001]